bitfinex/quotes_SOLUSD_20240922
["timestamp","ask_amount","ask_price","bid_price","bid_amount"]
[1726974174378,0.12549,147.82,147.77,32.85117264]
[1726974178172,60.3297,147.88,147.77,32.85117264]
[1726974178173,6.88959,147.84,147.77,32.85117264]
[1726974178386,0.12549,147.84,147.77,32.85117264]
[1726974179106,0.25098,147.83,147.77,32.85117264]
[1726974179600,7.01558,147.83,147.77,32.85117264]
[1726974179809,8.11730834,147.82,147.77,32.85117264]
[1726974179998,7.01548,147.83,147.77,32.85117264]
[1726974181608,0.25098,147.81,147.75,13.10320564]
[1726974181898,0.25098,147.79,147.75,0.252033]
[1726974183183,0.25098,147.79,147.75,20.252033]
[1726974186701,0.25098,147.79,147.75,21.60555131]
[1726974186903,0.25098,147.81,147.77,20.0]
[1726974187289,0.25098,147.8,147.77,20.0]
[1726974187489,0.25098,147.8,147.75,0.252033]
[1726974187490,0.25098,147.8,147.75,20.252033]
[1726974190401,8.36928834,147.8,147.75,20.252033]
[1726974190602,7.01698,147.8,147.75,20.252033]
[1726974192706,1.35230834,147.79,147.75,20.252033]
[1726974197488,1.35230834,147.79,147.75,0.252033]
[1726974200090,7.01698,147.8,147.75,0.252033]
[1726974202016,1.35230834,147.79,147.75,0.252033]
[1726974202228,0.25098,147.78,147.75,0.252033]
[1726974203212,7.01778,147.78,147.75,0.252033]
[1726974203425,0.25098,147.78,147.75,0.252033]
[1726974205919,1.60328834,147.78,147.75,0.252033]
[1726974206303,8.37008834,147.78,147.75,0.252033]
[1726974206915,7.01778,147.78,147.75,0.252033]
[1726974209118,1.35230834,147.77,147.75,0.252033]
[1726974209418,6.7677,147.76,147.75,0.252033]
[1726974209716,8.11970834,147.77,147.75,0.252033]
[1726974210220,1.35230834,147.76,147.75,0.252033]
[1726974211219,7.01788,147.78,147.75,0.252033]
[1726974211822,1.35230834,147.77,147.75,0.252033]
[1726974212220,7.01788,147.78,147.75,0.252033]
[1726974214117,0.25098,147.78,147.75,0.252033]
[1726974214820,0.25098,147.78,147.75,20.252033]
[1726974216216,0.12549,147.79,147.75,13.10320564]
[1726974216422,28.8325,147.83,147.78,12.85117264]
[1726974217412,6.765,147.82,147.78,12.85117264]
[1726974217612,0.25098,147.81,147.77,12.85117264]
[1726974226010,1.60328834,147.81,147.77,20.0]
[1726974226237,0.25098,147.79,147.77,20.0]
[1726974226822,0.25098,147.79,147.75,0.252033]
[1726974227022,0.12549,147.79,147.75,13.10320564]
[1726974227325,0.25098,147.8,147.76,20.0]
[1726974231923,1.60328834,147.8,147.76,20.0]
[1726974232312,0.25098,147.8,147.76,20.0]
[1726974232517,1.60328834,147.8,147.76,20.0]
[1726974232725,0.25098,147.8,147.76,20.0]
[1726974233635,15.0053,147.88,147.8,20.0]
[1726974233842,15.0053,147.88,147.76,10.12454849]
[1726974233843,6.2762,147.89,147.86,20.0]
[1726974234141,0.252033,147.9,147.86,20.0]
[1726974234433,0.252033,147.9,147.82,21.35263965]
[1726974234637,0.252033,147.9,147.86,12.85117264]
[1726974234853,0.252033,147.9,147.87,12.85117264]
[1726974237424,0.25098,147.89,147.87,12.85117264]
[1726974240529,0.25098,147.89,147.76,15.4428]
[1726974240847,24.028917,147.9,147.81,12.85117264]
[1726974240848,0.25098,147.86,147.81,12.85117264]
[1726974242050,0.25098,147.86,147.82,20.0]
[1726974246655,0.25098,147.86,147.76,15.4428]
[1726974246656,7.01548,147.84,147.76,15.4428]
[1726974246960,0.12549,147.85,147.79,12.85117264]
[1726974247455,0.25098,147.85,147.79,12.85117264]
[1726974247839,0.25098,147.85,147.81,12.85117264]
[1726974248163,0.12549,147.87,147.83,12.85117264]
[1726974248343,0.25098,147.87,147.83,12.85117264]
[1726974248857,0.25098,147.88,147.83,12.85117264]
[1726974250047,6.7623,147.88,147.83,12.85117264]
[1726974250249,0.25098,147.87,147.83,12.85117264]
[1726974256541,6.47213616,147.88,147.83,12.85117264]
[1726974257646,6.7618,147.89,147.84,12.85117264]
[1726974257841,28.294833,147.9,147.86,12.85117264]
[1726974258557,21.533533,147.9,147.86,12.85117264]
[1726974259337,15.257333,147.9,147.87,12.85117264]
[1726974259560,0.12549,147.89,147.87,12.85117264]
[1726974264046,0.12549,147.89,147.86,12.85117264]
[1726974266170,1.60328834,147.89,147.82,20.0]
[1726974266465,24.94952595,147.9,147.82,20.0]
[1726974266466,0.25098,147.87,147.82,32.85117264]
[1726974267371,0.25098,147.88,147.84,20.0]
[1726974267551,0.25098,147.88,147.84,32.85117264]
[1726974268664,6.7625,147.88,147.84,32.85117264]
[1726974268969,0.12549,147.87,147.84,32.85117264]
[1726974270068,0.12549,147.88,147.84,32.85117264]
[1726974272657,1.47779834,147.88,147.84,32.85117264]
[1726974272860,0.12549,147.88,147.84,32.85117264]
[1726974273961,1.47779834,147.88,147.84,32.85117264]
[1726974274273,0.12549,147.87,147.78,20.0]
[1726974274575,0.12549,147.85,147.82,20.0]
[1726974275156,0.12549,147.86,147.83,20.0]
[1726974275477,1.47779834,147.86,147.83,20.0]
[1726974275652,0.12549,147.85,147.83,20.0]
[1726974276179,0.12549,147.85,147.82,20.0]
[1726974276673,12.9048,147.89,147.84,12.85117264]
[1726974277971,0.12549,147.88,147.85,12.85117264]
[1726974278197,6.1427,147.89,147.86,12.85117264]
[1726974278652,0.25098,147.89,147.86,12.85117264]
[1726974278862,0.252033,147.9,147.89,20.0]
[1726974279117,0.252033,147.95,147.89,20.0]
[1726974279376,0.252033,147.95,147.93,12.85117264]
[1726974280053,0.252033,147.95,147.86,1.93653621]
[1726974280254,0.252033,147.95,147.94,12.85117264]
[1726974284897,0.252033,147.95,147.94,32.85117264]
[1726974287811,0.252033,147.95,147.9,20.0]
[1726974287979,0.252033,147.95,147.93,20.0]
[1726974289602,0.252033,147.95,147.93,12.85117264]
[1726974289800,0.252033,147.95,147.94,20.0]
[1726974303086,0.252033,147.95,147.91,12.85117264]
[1726974303285,0.252033,147.95,147.92,20.0]
[1726974304904,0.252033,147.95,147.89,15.6232]
[1726974304905,0.252033,147.95,147.93,12.85117264]
[1726974305286,0.252033,147.95,147.94,20.0]
[1726974306596,0.252033,147.95,147.94,12.85117264]
[1726974306787,0.252033,147.95,147.94,32.85117264]
[1726974308012,0.252033,147.95,147.93,12.85117264]
[1726974308305,0.252033,147.95,147.94,20.0]
[1726974310004,0.252033,147.95,147.89,15.6232]
[1726974310210,0.25098,147.94,147.88,12.85117264]
[1726974310413,1.60328834,147.94,147.88,12.85117264]
[1726974311579,1.60328834,147.94,147.89,20.0]
[1726974311780,0.25098,147.94,147.9,12.85117264]
[1726974312211,0.25098,147.94,147.91,20.0]
[1726974312510,0.252033,147.95,147.91,34.20329199]
[1726974312818,0.252033,147.95,147.92,12.85117264]
[1726974317308,0.252033,147.95,147.91,20.0]
[1726974322510,0.252033,147.95,147.93,12.85117264]
[1726974322719,0.252033,147.95,147.88,20.0]
[1726974323015,0.252033,147.95,147.92,20.0]
[1726974323322,1.60434134,147.95,147.92,20.0]
[1726974323804,0.252033,147.95,147.92,20.0]
[1726974327517,0.252033,147.95,147.93,12.85117264]
[1726974332705,0.252033,147.95,147.94,20.0]
[1726974333211,0.252033,147.95,147.94,21.35175015]
[1726974333528,0.252033,147.95,147.94,20.0]
[1726974336024,0.25098,147.98,147.94,20.0]
[1726974338925,0.12549,147.98,147.94,20.0]
[1726974339149,0.2310554,147.99,147.94,20.0]
[1726974339332,0.2310554,147.99,147.94,12.85117264]
[1726974343837,0.2310554,147.99,147.91,20.0]
[1726974343838,0.1055654,147.99,147.98,12.85117264]
[1726974344090,1.60434134,148.04,147.99,20.0]
[1726974344091,0.252033,148.04,147.99,20.0]
[1726974344707,0.252033,148.04,148.01,20.0]
[1726974345010,0.252033,148.04,148.02,14.20223437]
[1726974345227,0.252033,148.04,148.03,20.0]
[1726974345428,0.252033,148.04,148.03,21.35091937]
[1726974346438,0.3535324,148.08,148.03,44.13611937]
[1726974346616,0.3535324,148.08,148.07,32.85117264]
[1726974349327,0.3535324,148.08,148.07,34.20158729]
[1726974350524,0.3535324,148.08,148.07,32.85117264]
[1726974353850,0.3535324,148.08,148.07,56.62805664]
[1726974355548,0.3535324,148.08,148.07,57.9782233]
[1726974357655,0.3535324,148.08,148.07,56.62805664]
[1726974362848,0.3535324,148.08,148.05,2.705188]
[1726974363052,0.3535324,148.08,148.07,12.85117264]
[1726974364132,0.3535324,148.08,148.07,32.85117264]
[1726974366448,0.3535324,148.08,148.03,25.490723]
[1726974366449,0.3535324,148.08,148.05,23.776884]
[1726974366755,0.3535324,148.08,148.07,32.85117264]
[1726974368953,6.7494,148.16,148.07,32.85117264]
[1726974368954,0.25098,148.15,148.08,20.0]
[1726974369146,0.25098,148.15,148.1,20.0]
[1726974369848,0.25098,148.16,148.1,20.0]
[1726974370533,0.25098,148.16,148.1,12.85117264]
[1726974370754,0.25098,148.16,148.11,20.0]
[1726974373059,32.12967234,148.16,148.09,20.0]
[1726974373666,30.777364,148.16,148.09,20.0]
[1726974374266,24.027864,148.16,148.09,20.0]
[1726974375354,0.12549,148.14,148.09,20.0]
[1726974375931,0.12549,148.15,148.09,20.0]
[1726974376863,0.3535324,148.17,148.11,20.0]
[1726974377043,0.3535324,148.17,148.12,1.35006582]
[1726974377965,0.3535324,148.17,148.12,14.20123846]
[1726974378137,0.3535324,148.17,148.13,20.0]
[1726974378338,0.3535324,148.17,148.15,20.0]
[1726974382746,0.3535324,148.17,148.16,32.85117264]
[1726974386362,0.3535324,148.17,148.12,20.0]
[1726974386872,0.3535324,148.17,148.13,1.34991159]
[1726974387174,0.3535324,148.17,148.14,20.0]
[1726974388646,0.3535324,148.17,148.14,21.34990822]
[1726974393754,0.3535324,148.17,148.14,20.0]
[1726974393959,0.3535324,148.17,148.12,20.0]
[1726974394160,1.60328834,148.16,148.08,12.85117264]
[1726974394958,8.35268834,148.16,148.08,12.85117264]
[1726974395790,1.60328834,148.16,148.09,20.0]
[1726974395974,24.027864,148.16,148.09,20.0]
[1726974397262,0.25098,148.16,148.1,1.35025188]
[1726974397586,0.25098,148.16,148.12,20.0]
[1726974398888,35.62170399,148.28,148.11,12.85117264]
[1726974398889,0.252033,148.22,148.16,20.0]
[1726974399194,22.7404,148.3,148.18,43.902374]
[1726974399384,22.7404,148.3,148.24,20.0]
[1726974400961,22.7404,148.3,148.18,42.26810428]
[1726974400962,13.07136156,148.3,148.26,20.0]
[1726974401182,6.3136,148.3,148.26,20.0]
[1726974401384,0.2233995,148.31,148.27,12.85117264]
[1726974401757,0.2233995,148.31,148.28,20.0]
[1726974402497,0.2233995,148.31,148.24,20.0]
[1726974406293,1.60328834,148.3,148.18,10.71031767]
[1726974406483,0.25098,148.3,148.21,19.87201588]
[1726974407795,0.25098,148.3,148.22,20.0]
[1726974409194,20.7512635,148.31,148.22,20.0]
[1726974409491,56.7417,148.33,148.22,20.0]
[1726974409790,1.35230834,148.32,148.22,20.0]
[1726974410799,22.7404,148.34,148.22,20.0]
[1726974411109,6.7421,148.33,148.21,20.0]
[1726974411296,24.027864,148.32,148.21,20.0]
[1726974411705,0.25098,148.32,148.21,20.0]
[1726974412986,0.25098,148.3,148.21,20.0]
[1726974413185,1.35230834,148.29,148.21,20.0]
[1726974413386,0.12549,148.3,148.21,20.0]
[1726974413694,0.25098,148.3,148.21,20.0]
[1726974417220,0.12549,148.33,148.22,19.87201588]
[1726974417389,22.7404,148.34,148.23,20.0]
[1726974417596,29.4817,148.34,148.23,20.0]
[1726974417794,1.35230834,148.33,148.23,20.0]
[1726974418120,8.09400834,148.33,148.23,20.0]
[1726974418284,29.4817,148.34,148.23,20.0]
[1726974418488,1.35230834,148.33,148.23,20.0]
[1726974419417,29.4818,148.34,148.23,20.0]
[1726974419802,24.027864,148.33,148.23,20.0]
[1726974420320,24.027864,148.31,148.23,20.0]
[1726974420491,0.25098,148.29,148.19,20.0]
[1726974420818,22.7404,148.34,148.23,20.0]
[1726974420987,22.7404,148.34,148.25,20.0]
[1726974423110,0.25098,148.33,148.25,20.0]
[1726974424420,24.027864,148.33,148.24,20.0]
[1726974424724,24.027864,148.33,148.23,15.5585]
[1726974424725,0.25098,148.31,148.23,15.5585]
[1726974425420,0.25098,148.32,148.23,15.5585]
[1726974426016,0.25098,148.32,148.24,20.0]
[1726974426220,0.25098,148.32,148.24,21.34883574]
[1726974426606,30.269564,148.33,148.24,21.34883574]
[1726974426807,30.269564,148.33,148.24,20.0]
[1726974428916,0.25098,148.32,148.24,20.0]
[1726974429898,0.12549,148.32,148.25,14.06907616]
[1726974430106,0.12549,148.32,148.26,20.0]
[1726974430620,1.60328834,148.32,148.24,20.0]
[1726974431200,0.25098,148.32,148.24,20.0]
[1726974432927,1.35230834,148.31,148.24,20.0]
[1726974433309,44.347864,148.29,148.19,22.7931]
[1726974433624,30.772264,148.27,148.18,12.9971456]
[1726974433836,1.35230834,148.26,148.18,12.9971456]
[1726974434039,0.25098,148.25,148.18,0.2769051]
[1726974434332,24.027864,148.23,148.18,0.2769051]
[1726974434503,0.25098,148.23,148.18,0.2769051]
[1726974436413,6.99728,148.23,148.18,0.2769051]
[1726974436709,22.86338,148.21,148.18,0.2769051]
[1726974436923,1.35230834,148.2,148.18,0.2769051]
[1726974437233,22.86338,148.21,148.18,0.2769051]
[1726974439701,1.35230834,148.2,148.18,0.2769051]
[1726974439909,22.86338,148.21,148.18,0.2769051]
[1726974444137,1.35230834,148.2,148.18,0.2769051]
[1726974445935,25.38017234,148.19,148.18,0.2769051]
[1726974446312,24.027864,148.19,148.18,0.2769051]
[1726974447033,32.12817234,148.19,148.18,0.2769051]
[1726974447244,70.32,148.18,148.13,0.2769051]
[1726974447406,24.027864,148.17,148.13,0.2769051]
[1726974448129,24.027864,148.15,148.13,0.2769051]
[1726974448333,30.777764,148.15,148.13,0.2769051]
[1726974449527,24.027864,148.15,148.13,0.2769051]
[1726974450724,0.25098,148.15,148.13,0.2769051]
[1726974457929,6.7486,148.18,148.13,0.2769051]
[1726974459342,24.027864,148.17,148.13,0.2769051]
[1726974460726,0.25098,148.17,148.13,0.2769051]
[1726974461754,0.25098,148.17,148.12,0.3726198]
[1726974464540,23.776884,148.19,148.12,0.3726198]
[1726974464753,16.1121,148.21,148.13,12.74790324]
[1726974464929,6.7467,148.22,148.14,1.34989698]
[1726974465420,6.7467,148.22,148.14,17.51149698]
[1726974466043,24.027864,148.21,148.14,17.51149698]
[1726974469651,0.25098,148.21,148.14,17.51149698]
[1726974469955,0.25098,148.21,148.14,16.1616]
[1726974470451,1.60328834,148.21,148.14,16.1616]
[1726974470654,0.25098,148.21,148.14,16.1616]
[1726974472857,6.99818,148.21,148.14,16.1616]
[1726974473947,1.35230834,148.2,148.14,16.1616]
[1726974474278,1.60328834,148.19,148.14,16.1616]
[1726974474472,24.027864,148.19,148.14,16.1616]
[1726974476562,1.35230834,148.18,148.14,16.1616]
[1726974476750,24.027864,148.19,148.14,16.2646209]
[1726974481059,0.25098,148.2,148.14,16.2646209]
[1726974481263,24.027864,148.21,148.14,16.2646209]
[1726974487161,0.25098,148.21,148.15,20.0]
[1726974487365,6.7458,148.24,148.16,12.74790324]
[1726974487673,0.12549,148.23,148.16,12.74790324]
[1726974487858,6.7458,148.24,148.16,12.74790324]
[1726974489372,24.027864,148.23,148.16,12.74790324]
[1726974490284,24.027864,148.23,148.15,20.0]
[1726974491066,24.027864,148.23,148.16,1.34969358]
[1726974491266,24.027864,148.23,148.15,20.0]
[1726974492074,24.027864,148.23,148.15,20.1030209]
[1726974492268,24.027864,148.21,148.15,20.1030209]
[1726974492476,24.027864,148.19,148.15,0.1030209]
[1726974492678,1.35230834,148.18,148.15,0.1030209]
[1726974492862,24.027864,148.19,148.15,0.1030209]
[1726974493182,24.027864,148.2,148.15,0.1030209]
[1726974494677,1.35230834,148.19,148.15,0.1030209]
[1726974495463,24.027864,148.2,148.15,0.1030209]
[1726974503166,1.35230834,148.19,148.15,0.1030209]
[1726974503967,44.347864,148.2,148.15,0.1030209]
[1726974504165,24.027864,148.17,148.15,0.1030209]
[1726974504486,1.60328834,148.16,148.15,0.1030209]
[1726974504660,25.38017234,148.16,148.15,0.1030209]
[1726974505267,24.027864,148.16,148.15,0.1030209]
[1726974507590,25.38017234,148.16,148.15,0.1030209]
[1726974508978,24.027864,148.16,148.15,0.1030209]
[1726974520602,25.38017234,148.16,148.15,0.1030209]
[1726974521304,24.027864,148.16,148.15,0.1030209]
[1726974522088,24.027864,148.16,148.1,16.6591]
[1726974522288,24.027864,148.16,148.15,0.2180187]
[1726974528516,50.0,148.22,148.15,0.2180187]
[1726974528811,66.52232287,148.24,148.15,0.2180187]
[1726974529217,73.26842287,148.24,148.15,0.2180187]
[1726974529421,50.0,148.24,148.15,16.7338187]
[1726974529717,56.7458,148.24,148.16,32.74790324]
[1726974530521,24.027864,148.23,148.16,32.74790324]
[1726974534120,0.12549,148.21,148.16,32.74790324]
[1726974534300,24.027864,148.23,148.16,32.74790324]
[1726974543129,24.027864,148.23,148.16,34.09762814]
[1726974543510,7.9204703,148.27,148.16,32.74790324]
[1726974543731,9.30476783,148.3,148.2,20.0]
[1726974543732,50.2783847,148.3,148.2,20.0]
[1726974543907,1.17558285,148.29,148.2,32.74790324]
[1726974544428,0.2783847,148.3,148.2,32.74790324]
[1726974544429,7.0214847,148.3,148.2,32.74790324]
[1726974545321,24.027864,148.29,148.2,32.74790324]
[1726974545706,24.027864,148.29,148.21,1.34918701]
[1726974545911,24.027864,148.29,148.2,32.74790324]
[1726974545912,30.771464,148.29,148.2,20.0]
[1726974546116,24.027864,148.27,148.2,20.0]
[1726974546323,1.35230834,148.26,148.2,20.0]
[1726974547305,1.47779834,148.25,148.2,20.0]
[1726974547802,1.35230834,148.25,148.2,20.0]
[1726974548021,0.12549,148.27,148.2,20.0]
[1726974548219,0.25098,148.28,148.2,20.0]
[1726974549033,0.25098,148.28,148.2,32.74790324]
[1726974551744,0.25098,148.28,148.21,1.34923131]
[1726974552824,0.25098,148.28,148.2,32.74790324]
[1726974557739,0.25098,148.28,148.21,1.34918645]
[1726974558410,0.25098,148.28,148.2,32.74790324]
[1726974559111,1.35230834,148.27,148.2,32.74790324]
[1726974560139,0.25098,148.28,148.2,32.74790324]
[1726974564513,0.25098,148.28,148.21,1.34917806]
[1726974565639,0.25098,148.28,148.2,32.74790324]
[1726974565842,0.25098,148.28,148.21,1.3491512]
[1726974569044,0.25098,148.28,148.2,32.74790324]
[1726974569942,0.25098,148.28,148.2,20.0]
[1726974570234,1.35230834,148.27,148.2,20.0]
[1726974571147,24.027864,148.26,148.2,20.0]
[1726974571443,1.35230834,148.25,148.19,22.028]
[1726974572016,24.027864,148.26,148.19,22.028]
[1726974573234,27.0638,148.29,148.2,1.34939787]
[1726974573439,24.027864,148.28,148.2,14.09730111]
[1726974574120,6.99498,148.28,148.2,14.09730111]
[1726974574550,23.776884,148.27,148.2,14.09730111]
[1726974574848,23.776884,148.27,148.2,12.74790324]
[1726974577244,50.2783847,148.3,148.2,12.74790324]
[1726974577245,6.7435,148.29,148.2,12.74790324]
[1726974577447,1.35230834,148.27,148.2,12.74790324]
[1726974577625,6.7435,148.29,148.2,12.74790324]
[1726974578524,0.25098,148.29,148.21,16.0347]
[1726974578727,0.2783847,148.3,148.22,14.09697674]
[1726974579738,0.2783847,148.3,148.23,26.4982]
[1726974579950,0.2783847,148.3,148.25,16.0347]
[1726974582638,0.2783847,148.3,148.26,1.34873097]
[1726974583441,0.2783847,148.3,148.25,16.0347]
[1726974585662,0.2783847,148.3,148.26,1.34879858]
[1726974585851,0.2783847,148.3,148.25,16.0347]
[1726974591750,0.2783847,148.3,148.25,28.78260324]
[1726974592671,0.2783847,148.3,148.25,16.0347]
[1726974597076,1.63069304,148.3,148.25,16.0347]
[1726974597283,0.2783847,148.3,148.25,16.0347]
[1726974598468,8.34688834,148.29,148.25,16.0347]
[1726974598671,6.99458,148.29,148.25,16.0347]
[1726974599187,0.25098,148.29,148.25,16.0347]
[1726974602260,0.2783847,148.3,148.25,28.78260324]
[1726974609408,0.2783847,148.3,148.25,16.0347]
[1726974609567,0.12549,148.29,148.25,16.0347]
[1726974610271,7.0215847,148.3,148.25,16.0347]
[1726974610880,1.35230834,148.29,148.25,16.0347]
[1726974611081,24.027864,148.28,148.23,6.4982]
[1726974611280,24.027864,148.28,148.21,15.9235]
[1726974611281,1.35230834,148.27,148.21,15.9235]
[1726974612282,0.12549,148.26,148.21,15.9235]
[1726974612479,1.35230834,148.25,148.21,15.9235]
[1726974612998,1.35230834,148.27,148.21,15.9235]
[1726974613299,6.7449,148.26,148.21,15.9235]
[1726974613482,1.35230834,148.25,148.21,15.9235]
[1726974614797,0.12549,148.26,148.21,15.9235]
[1726974614997,1.47779834,148.26,148.21,15.9235]
[1726974615601,8.22279834,148.26,148.21,15.9235]
[1726974616515,7.98279834,148.26,148.21,15.9235]
[1726974619490,30.647774,148.25,148.21,15.9235]
[1726974619791,30.647774,148.25,148.19,6.5861]
[1726974619792,1.23779834,148.24,148.19,6.5861]
[1726974620494,30.647774,148.25,148.19,6.5861]
[1726974621085,23.902374,148.25,148.19,6.5861]
[1726974621286,6.746,148.24,148.19,6.5861]
[1726974621487,23.776884,148.24,148.19,6.5861]
[1726974622082,30.522684,148.24,148.19,6.5861]
[1726974624427,30.522684,148.24,148.18,20.0]
[1726974626508,8.23507834,148.23,148.17,15.9705]
[1726974627017,23.776884,148.22,148.17,15.9705]
[1726974627319,1.23779834,148.21,148.17,15.9705]
[1726974629293,23.776884,148.22,148.17,15.9705]
[1726974633011,1.23779834,148.21,148.17,15.9705]
[1726974634398,23.776884,148.19,148.15,0.2180187]
[1726974634601,1.23779834,148.18,148.15,0.2180187]
[1726974634817,7.98639834,148.18,148.15,0.2180187]
[1726974635316,30.776964,148.17,148.15,0.2180187]
[1726974635503,25.01468234,148.16,148.15,0.2180187]
[1726974636408,32.01506234,148.16,148.15,0.2180187]
[1726974636612,24.027864,148.16,148.15,0.2180187]
[1726974639909,23.776884,148.16,148.15,0.2180187]
[1726974642426,24.027864,148.18,148.15,0.2180187]
[1726974642737,24.027864,148.19,148.15,0.2180187]
[1726974642906,30.775964,148.19,148.15,0.2180187]
[1726974643109,6.99908,148.19,148.15,0.2180187]
[1726974643521,23.776884,148.18,148.15,0.2180187]
[1726974644730,0.25098,148.2,148.15,0.2180187]
[1726974646106,24.027864,148.2,148.15,0.2180187]
[1726974652413,6.747,148.22,148.15,0.2180187]
[1726974652617,56.3666,148.27,148.15,29.13482194]
[1726974652819,66.63078147,148.27,148.15,29.13482194]
[1726974653635,6.7454,148.25,148.15,29.13482194]
[1726974653835,6.7454,148.25,148.17,12.74790324]
[1726974654140,6.7454,148.25,148.18,1.34951251]
[1726974654326,24.027864,148.24,148.17,12.74790324]
[1726974657345,0.25098,148.24,148.17,12.74790324]
[1726974657542,6.7444,148.27,148.18,20.0]
[1726974657728,0.2783847,148.3,148.22,20.0]
[1726974658041,0.2783847,148.3,148.23,14.0968612]
[1726974658343,0.2783847,148.3,148.23,12.74790324]
[1726974658917,30.7983687,148.3,148.22,20.0]
[1726974659143,1.23779834,148.29,148.2,32.74790324]
[1726974659617,24.027864,148.28,148.2,20.0]
[1726974659823,1.23779834,148.27,148.2,20.0]
[1726974660431,30.771864,148.28,148.2,20.0]
[1726974660630,1.23779834,148.26,148.19,22.9162]
[1726974661138,23.776884,148.26,148.19,22.9162]
[1726974661539,1.23779834,148.25,148.19,22.9162]
[1726974661723,23.776884,148.26,148.19,22.9162]
[1726974663044,1.23779834,148.25,148.19,22.9162]
[1726974663224,23.776884,148.26,148.19,22.9162]
[1726974664622,25.01468234,148.26,148.19,22.9162]
[1726974665847,23.776884,148.26,148.19,22.9162]
[1726974669143,0.25098,148.25,148.19,16.516]
[1726974669349,30.521784,148.26,148.19,29.26390324]
[1726974669527,23.776884,148.26,148.2,1.34939925]
[1726974670543,6.7301847,148.3,148.2,14.09730249]
[1726974670743,0.12549,148.28,148.21,12.74790324]
[1726974673223,30.645874,148.29,148.22,1.34912473]
[1726974673430,23.902374,148.29,148.22,14.09702797]
[1726974674264,23.902374,148.29,148.23,1.34905176]
[1726974674757,6.7301847,148.3,148.23,14.096955]
[1726974674930,0.2783847,148.3,148.25,12.74790324]
[1726974675131,0.2783847,148.3,148.26,14.09653723]
[1726974675340,0.2783847,148.3,148.26,12.74790324]
[1726974678039,0.2783847,148.3,148.25,16.0613]
[1726974680032,0.2783847,148.3,148.24,20.0]
[1726974680351,1.51618304,148.3,148.23,20.0]
[1726974680554,0.2783847,148.3,148.23,20.0]
[1726974681364,1.51618304,148.3,148.23,20.0]
[1726974681750,0.25098,148.29,148.22,12.74790324]
[1726974681945,0.2783847,148.3,148.23,1.34901986]
[1726974682165,0.2783847,148.3,148.22,20.0]
[1726974683159,23.902374,148.29,148.22,20.0]
[1726974683652,6.86899,148.29,148.22,20.0]
[1726974685049,6.86899,148.29,148.22,32.74790324]
[1726974686131,30.520884,148.28,148.22,20.0]
[1726974686342,23.776884,148.27,148.21,16.0613]
[1726974687229,6.86909,148.29,148.22,14.09706079]
[1726974687642,0.2783847,148.3,148.22,14.09706079]
[1726974688131,0.2783847,148.3,148.22,12.74790324]
[1726974688835,24.0552687,148.3,148.22,12.74790324]
[1726974689254,24.0552687,148.3,148.23,1.34893941]
[1726974690662,24.0552687,148.3,148.22,12.74790324]
[1726974691265,1.23779834,148.29,148.22,12.74790324]
[1726974691660,24.0552687,148.3,148.23,1.34891145]
[1726974691973,24.0552687,148.3,148.22,12.74790324]
[1726974693951,1.23779834,148.29,148.22,12.74790324]
[1726974694155,25.01468234,148.28,148.22,20.0]
[1726974694366,23.776884,148.28,148.22,20.0]
[1726974695065,30.520884,148.28,148.22,20.0]
[1726974695567,23.776884,148.28,148.22,20.0]
[1726974695773,7.0214847,148.3,148.23,1.34910482]
[1726974696169,24.0552687,148.3,148.23,14.09700806]
[1726974697157,24.0552687,148.3,148.23,12.74790324]
[1726974698164,24.0552687,148.3,148.24,1.34897102]
[1726974698884,24.0552687,148.3,148.23,12.74790324]
[1726974701050,24.0552687,148.3,148.22,20.0]
[1726974701255,1.23779834,148.29,148.22,20.0]
[1726974701678,30.7983687,148.3,148.22,20.0]
[1726974702471,1.23779834,148.29,148.22,20.0]
[1726974703386,30.7983687,148.3,148.22,20.0]
[1726974703555,24.0552687,148.3,148.23,12.74790324]